[Event "Betsys MČR v online bleskovém šachu 2021"]
[Site "Chess.com"]
[Date "2021.04.17"]
[Round "7"]
[White "Gicko13"]
[Black "Countryside_58"]
[Result "1-0"]
[WhiteElo "2071"]
[BlackElo "2404"]
[TimeControl "180+1"]
[EndTime "10:13:24 PDT"]
[Termination "Uživatel Gicko13 zvítězil na čas"]

1. e4 {[%clk 0:03:00.9]} 1... Nf6 {[%clk 0:02:58.3]} 2. e5 {[%clk 0:02:59.6]}
2... Ng8 {[%clk 0:02:58.3]} 3. d4 {[%clk 0:02:49.9]} 3... d5 {[%clk 0:02:58.7]}
4. Bd3 {[%clk 0:02:48.9]} 4... c5 {[%clk 0:02:58]} 5. c3 {[%clk 0:02:48.9]} 5...
Nc6 {[%clk 0:02:58.5]} 6. Bc2 {[%clk 0:02:34.6]} 6... cxd4 {[%clk 0:02:46.8]} 7.
cxd4 {[%clk 0:02:34.4]} 7... a6 {[%clk 0:02:45.5]} 8. a3 {[%clk 0:02:31.7]} 8...
Nh6 {[%clk 0:02:42.3]} 9. Nc3 {[%clk 0:02:25]} 9... Bg4 {[%clk 0:02:37.6]} 10.
Nge2 {[%clk 0:01:57.1]} 10... e6 {[%clk 0:02:36.9]} 11. O-O {[%clk 0:01:56.3]}
11... Rc8 {[%clk 0:02:35.9]} 12. Be3 {[%clk 0:01:40.2]} 12... Bf5 {[%clk
0:02:22.9]} 13. Ng3 {[%clk 0:01:30.3]} 13... Bxc2 {[%clk 0:02:22.2]} 14. Qxc2
{[%clk 0:01:31.2]} 14... g6 {[%clk 0:02:17.7]} 15. b4 {[%clk 0:01:20]} 15... b5
{[%clk 0:02:10.6]} 16. h3 {[%clk 0:01:11.7]} 16... Nf5 {[%clk 0:02:10.1]} 17.
Nxf5 {[%clk 0:01:10.4]} 17... gxf5 {[%clk 0:02:10.3]} 18. Qd2 {[%clk 0:01:10.4]}
18... Be7 {[%clk 0:02:09.7]} 19. Ne2 {[%clk 0:01:03.3]} 19... Rg8 {[%clk
0:02:04.5]} 20. Nf4 {[%clk 0:01:02]} 20... Kd7 {[%clk 0:01:44.4]} 21. Nd3 {[%clk
0:00:54.7]} 21... Rg6 {[%clk 0:01:38.9]} 22. Kh1 {[%clk 0:00:49.4]} 22... Qb6
{[%clk 0:01:38.3]} 23. Rfc1 {[%clk 0:00:37.5]} 23... Rcg8 {[%clk 0:01:35.1]} 24.
Nf4 {[%clk 0:00:35.8]} 24... R6g7 {[%clk 0:01:30.1]} 25. Rg1 {[%clk 0:00:33.8]}
25... Qd8 {[%clk 0:01:17.3]} 26. Rac1 {[%clk 0:00:31.1]} 26... Qb6 {[%clk
0:01:15.1]} 27. Nd3 {[%clk 0:00:25.7]} 27... h5 {[%clk 0:01:10.3]} 28. Nc5+
{[%clk 0:00:24]} 28... Bxc5 {[%clk 0:01:09.1]} 29. Rxc5 {[%clk 0:00:24.9]} 29...
Ne7 {[%clk 0:01:03.6]} 30. h4 {[%clk 0:00:22.3]} 30... Rg4 {[%clk 0:00:59.3]}
31. g3 {[%clk 0:00:19.1]} 31... Rc8 {[%clk 0:00:40.4]} 32. Rgc1 {[%clk
0:00:15.6]} 32... Rxc5 {[%clk 0:00:39.6]} 33. Rxc5 {[%clk 0:00:16.5]} 33... Nc6
{[%clk 0:00:34]} 34. Qc3 {[%clk 0:00:12.5]} 34... Rg8 {[%clk 0:00:29.6]} 35. Bg5
{[%clk 0:00:11.7]} 35... Rc8 {[%clk 0:00:29.3]} 36. Bf6 {[%clk 0:00:07.9]} 36...
Na7 {[%clk 0:00:29.2]} 37. Qd2 {[%clk 0:00:07.5]} 37... Rxc5 {[%clk 0:00:28.4]}
38. dxc5 {[%clk 0:00:08.4]} 38... Qb8 {[%clk 0:00:22.3]} 39. Qg5 {[%clk
0:00:08.4]} 39... Nc6 {[%clk 0:00:20.5]} 40. Qxh5 {[%clk 0:00:07.8]} 40... Nxe5
{[%clk 0:00:19.4]} 41. Bxe5 {[%clk 0:00:07.9]} 41... Qxe5 {[%clk 0:00:18.9]} 42.
Qxf7+ {[%clk 0:00:08.6]} 42... Kc6 {[%clk 0:00:19.2]} 43. Qe8+ {[%clk
0:00:08.9]} 43... Kc7 {[%clk 0:00:17.7]} 44. Qe7+ {[%clk 0:00:09.2]} 44... Kc6
{[%clk 0:00:16.7]} 45. Kh2 {[%clk 0:00:07.6]} 45... f4 {[%clk 0:00:16]} 46. h5
{[%clk 0:00:06.7]} 46... fxg3+ {[%clk 0:00:15.2]} 47. fxg3 {[%clk 0:00:06.7]}
47... Qxh5+ {[%clk 0:00:15.6]} 48. Kg2 {[%clk 0:00:06.8]} 48... Qe2+ {[%clk
0:00:15.3]} 49. Kh3 {[%clk 0:00:07.2]} 49... Qh5+ {[%clk 0:00:14.5]} 50. Kg2
{[%clk 0:00:07.5]} 50... Qe5 {[%clk 0:00:14.2]} 51. g4 {[%clk 0:00:06.9]} 51...
d4 {[%clk 0:00:14]} 52. Qe8+ {[%clk 0:00:06.5]} 52... Kd5 {[%clk 0:00:13.7]} 53.
Qd7+ {[%clk 0:00:05.7]} 53... Kc4 {[%clk 0:00:13.3]} 54. c6 {[%clk 0:00:06.2]}
54... Qe2+ {[%clk 0:00:12.2]} 55. Kh3 {[%clk 0:00:06.3]} 55... Qf3+ {[%clk
0:00:11.1]} 56. Kh4 {[%clk 0:00:06.8]} 56... Qf6+ {[%clk 0:00:10.2]} 57. Kh5
{[%clk 0:00:07.1]} 57... Qh8+ {[%clk 0:00:09.4]} 58. Kg6 {[%clk 0:00:07.5]}
58... Qg8+ {[%clk 0:00:09.2]} 59. Kf6 {[%clk 0:00:07.9]} 59... Qxg4 {[%clk
0:00:08.8]} 60. c7 {[%clk 0:00:08]} 60... Qf4+ {[%clk 0:00:07.1]} 61. Ke7 {[%clk
0:00:05.7]} 61... Qg5+ {[%clk 0:00:06.5]} 62. Kxe6 {[%clk 0:00:05.4]} 62... Qg6+
{[%clk 0:00:05.6]} 63. Ke7 {[%clk 0:00:05.4]} 63... Qg7+ {[%clk 0:00:05.3]} 64.
Kd8 {[%clk 0:00:05.6]} 64... Qf8+ {[%clk 0:00:04.9]} 65. Qe8 {[%clk 0:00:05.5]}
65... Qf6+ {[%clk 0:00:04.3]} 66. Qe7 {[%clk 0:00:04.9]} 66... Qh8+ {[%clk
0:00:04.1]} 67. Kd7 {[%clk 0:00:05.2]} 1-0

[Event "Betsys MČR v online bleskovém šachu 2021"]
[Site "Chess.com"]
[Date "2021.04.17"]
[Round "7"]
[White "ffbp3q"]
[Black "Tolja1"]
[Result "1-0"]
[WhiteElo "2360"]
[BlackElo "2038"]
[TimeControl "180+1"]
[EndTime "10:13:24 PDT"]
[Termination "Uživatel ffbp3q zvítězil matem"]

1. d4 {[%clk 0:03:00.9]} 1... e6 {[%clk 0:02:59.5]} 2. c4 {[%clk 0:03:00.2]}
2... f5 {[%clk 0:02:59]} 3. g3 {[%clk 0:02:59.6]} 3... Nf6 {[%clk 0:02:58.7]} 4.
Bg2 {[%clk 0:02:59.2]} 4... d5 {[%clk 0:02:58.7]} 5. Nf3 {[%clk 0:02:53.1]} 5...
c6 {[%clk 0:02:55.7]} 6. O-O {[%clk 0:02:51.8]} 6... Bd6 {[%clk 0:02:55.2]} 7.
Qc2 {[%clk 0:02:50.4]} 7... O-O {[%clk 0:02:52.9]} 8. Nc3 {[%clk 0:02:49.5]}
8... Bd7 {[%clk 0:02:50.9]} 9. Rb1 {[%clk 0:02:42]} 9... a5 {[%clk 0:02:49.4]}
10. c5 {[%clk 0:02:39.2]} 10... Bc7 {[%clk 0:02:46.1]} 11. a3 {[%clk 0:02:39.3]}
11... Ne4 {[%clk 0:02:43.5]} 12. Bf4 {[%clk 0:02:28.5]} 12... Bxf4 {[%clk
0:02:39.7]} 13. gxf4 {[%clk 0:02:28.3]} 13... Be8 {[%clk 0:02:39.6]} 14. Ne5
{[%clk 0:02:13.9]} 14... Nd7 {[%clk 0:02:36.7]} 15. Nxe4 {[%clk 0:02:07.4]}
15... fxe4 {[%clk 0:02:33.9]} 16. e3 {[%clk 0:02:05.2]} 16... Nxe5 {[%clk
0:02:31.3]} 17. dxe5 {[%clk 0:02:03.5]} 17... Bh5 {[%clk 0:02:30.2]} 18. f3
{[%clk 0:02:03.3]} 18... exf3 {[%clk 0:02:26.4]} 19. Bxf3 {[%clk 0:02:03.3]}
19... Bxf3 {[%clk 0:02:25.8]} 20. Rxf3 {[%clk 0:02:03.2]} 20... Qh4 {[%clk
0:02:17.4]} 21. Rg3 {[%clk 0:01:58.2]} 21... Kh8 {[%clk 0:02:10.2]} 22. Kh1
{[%clk 0:01:56.4]} 22... Rf7 {[%clk 0:02:08.2]} 23. Rbg1 {[%clk 0:01:55.9]}
23... Raf8 {[%clk 0:02:01.8]} 24. Rg4 {[%clk 0:01:53.8]} 24... Qh6 {[%clk
0:01:55.4]} 25. Qg2 {[%clk 0:01:49.9]} 25... g6 {[%clk 0:01:54.4]} 26. Qg3
{[%clk 0:01:46.8]} 26... Rf5 {[%clk 0:01:53.8]} 27. Rh4 {[%clk 0:01:27.7]} 27...
Rh5 {[%clk 0:01:49.6]} 28. Rxh5 {[%clk 0:01:24.2]} 28... Qxh5 {[%clk 0:01:48.5]}
29. Qg4 {[%clk 0:01:24]} 29... Rf5 {[%clk 0:01:39.8]} 30. Qxh5 {[%clk
0:01:20.2]} 30... Rxh5 {[%clk 0:01:39.1]} 31. Kg2 {[%clk 0:01:18.3]} 31... Rf5
{[%clk 0:01:03.1]} 32. Rd1 {[%clk 0:01:15]} 32... g5 {[%clk 0:00:52.8]} 33. Kg3
{[%clk 0:01:14]} 33... gxf4+ {[%clk 0:00:52.4]} 34. exf4 {[%clk 0:01:14]} 34...
Kg7 {[%clk 0:00:50]} 35. Rd4 {[%clk 0:01:12.4]} 35... Rf8 {[%clk 0:00:38.1]} 36.
Ra4 {[%clk 0:01:08]} 36... Kg6 {[%clk 0:00:34.3]} 37. Rxa5 {[%clk 0:01:05.5]}
37... Kf5 {[%clk 0:00:34.4]} 38. Ra4 {[%clk 0:01:02.3]} 38... Rg8+ {[%clk
0:00:31.7]} 39. Kf3 {[%clk 0:01:00.1]} 39... Rg1 {[%clk 0:00:29.7]} 40. Rb4
{[%clk 0:01:00.1]} 40... Rf1+ {[%clk 0:00:28.3]} 41. Ke3 {[%clk 0:00:58.7]}
41... Re1+ {[%clk 0:00:21.9]} 42. Kd2 {[%clk 0:00:54.7]} 42... Rh1 {[%clk
0:00:18.9]} 43. Rxb7 {[%clk 0:00:52.3]} 43... Rxh2+ {[%clk 0:00:18.9]} 44. Kc3
{[%clk 0:00:51.4]} 44... Kxf4 {[%clk 0:00:18.6]} 45. a4 {[%clk 0:00:48.3]} 45...
Kxe5 {[%clk 0:00:18.2]} 46. a5 {[%clk 0:00:47.9]} 46... Rh1 {[%clk 0:00:16.4]}
47. Rb3 {[%clk 0:00:41.8]} 47... d4+ {[%clk 0:00:12.5]} 48. Kc4 {[%clk
0:00:37.7]} 48... Rc1+ {[%clk 0:00:11.4]} 49. Kb4 {[%clk 0:00:37.3]} 49... Ra1
{[%clk 0:00:10.6]} 50. Ra3 {[%clk 0:00:23.5]} 50... Rxa3 {[%clk 0:00:10.4]} 51.
bxa3 {[%clk 0:00:20.2]} 51... Ke4 {[%clk 0:00:10]} 52. a6 {[%clk 0:00:20.5]}
52... d3 {[%clk 0:00:10.5]} 53. a7 {[%clk 0:00:15.6]} 53... d2 {[%clk
0:00:10.6]} 54. a8=Q {[%clk 0:00:15.6]} 54... d1=Q {[%clk 0:00:10.7]} 55. Qxc6+
{[%clk 0:00:15.6]} 55... Kf5 {[%clk 0:00:10.6]} 56. Qd6 {[%clk 0:00:11]} 56...
Qb1+ {[%clk 0:00:09.5]} 57. Ka5 {[%clk 0:00:08.7]} 57... Qb3 {[%clk 0:00:08]}
58. a4 {[%clk 0:00:07.5]} 58... h5 {[%clk 0:00:06.9]} 59. Qf8+ {[%clk
0:00:05.1]} 59... Ke5 {[%clk 0:00:06.3]} 60. Qd6+ {[%clk 0:00:04.9]} 60... Kf5
{[%clk 0:00:06.1]} 61. c6 {[%clk 0:00:05.2]} 61... h4 {[%clk 0:00:05.3]} 62. c7
{[%clk 0:00:05]} 62... h3 {[%clk 0:00:04.7]} 63. c8=Q {[%clk 0:00:04.3]} 63...
Qc3+ {[%clk 0:00:04.8]} 64. Qxc3 {[%clk 0:00:03.3]} 64... h2 {[%clk 0:00:04.7]}
65. Qdc5+ {[%clk 0:00:02.2]} 65... e5 {[%clk 0:00:04.5]} 66. Q5xe5+ {[%clk
0:00:01.8]} 66... Kg4 {[%clk 0:00:04.8]} 67. Qcg3# {[%clk 0:00:01.1]} 1-0

[Event "Betsys MČR v online bleskovém šachu 2021"]
[Site "Chess.com"]
[Date "2021.04.17"]
[Round "7"]
[White "KJ327NR"]
[Black "florenc1330"]
[Result "1-0"]
[WhiteElo "2327"]
[BlackElo "2094"]
[TimeControl "180+1"]
[EndTime "10:13:30 PDT"]
[Termination "Uživatel KJ327NR zvítězil matem"]

1. e4 {[%clk 0:03:00.9]} 1... d5 {[%clk 0:02:59.2]} 2. exd5 {[%clk 0:03:00.1]}
2... Qxd5 {[%clk 0:02:58.5]} 3. Nc3 {[%clk 0:03:00.6]} 3... Qa5 {[%clk 0:02:58]}
4. d4 {[%clk 0:02:58.9]} 4... Nf6 {[%clk 0:02:57.8]} 5. Bc4 {[%clk 0:02:56.5]}
5... Bg4 {[%clk 0:02:57.3]} 6. Ne2 {[%clk 0:02:53.4]} 6... Nc6 {[%clk
0:02:56.3]} 7. f3 {[%clk 0:02:50.6]} 7... Bh5 {[%clk 0:02:55.5]} 8. Be3 {[%clk
0:02:50]} 8... O-O-O {[%clk 0:02:54.4]} 9. O-O {[%clk 0:02:43.7]} 9... e5 {[%clk
0:02:53.9]} 10. d5 {[%clk 0:02:32.6]} 10... Bc5 {[%clk 0:02:53.4]} 11. Qd2
{[%clk 0:02:28.9]} 11... e4 {[%clk 0:02:49.3]} 12. fxe4 {[%clk 0:02:04]} 12...
Ng4 {[%clk 0:02:44]} 13. Bxc5 {[%clk 0:01:22.6]} 13... Qxc5+ {[%clk 0:02:42.7]}
14. Kh1 {[%clk 0:01:21.8]} 14... Qxc4 {[%clk 0:02:34]} 15. Qg5 {[%clk
0:01:17.4]} 15... Qc5 {[%clk 0:02:14.7]} 16. Qxh5 {[%clk 0:01:09.1]} 16... Nce5
{[%clk 0:02:00.1]} 17. h3 {[%clk 0:00:41.9]} 17... g6 {[%clk 0:01:58.1]} 18. Qg5
{[%clk 0:00:38.3]} 18... f6 {[%clk 0:01:47.7]} 19. Qf4 {[%clk 0:00:28.5]} 19...
h5 {[%clk 0:01:41.8]} 20. Rac1 {[%clk 0:00:16.4]} 20... Rdf8 {[%clk 0:01:36.4]}
21. Na4 {[%clk 0:00:16.1]} 21... Qb4 {[%clk 0:01:22.5]} 22. b3 {[%clk
0:00:15.6]} 22... Nh6 {[%clk 0:00:58.7]} 23. c3 {[%clk 0:00:15.2]} 23... Qd6
{[%clk 0:00:57.6]} 24. Nd4 {[%clk 0:00:15.1]} 24... g5 {[%clk 0:00:54.3]} 25.
Qe3 {[%clk 0:00:14.4]} 25... a6 {[%clk 0:00:47.4]} 26. c4 {[%clk 0:00:14.5]}
26... g4 {[%clk 0:00:46.4]} 27. c5 {[%clk 0:00:14.6]} 27... Qd8 {[%clk
0:00:37.7]} 28. c6 {[%clk 0:00:14.5]} 28... gxh3 {[%clk 0:00:30.5]} 29. Qxh3+
{[%clk 0:00:14.2]} 29... Nhg4 {[%clk 0:00:27.2]} 30. cxb7+ {[%clk 0:00:14.3]}
30... Kxb7 {[%clk 0:00:24.5]} 31. Nc5+ {[%clk 0:00:14.4]} 31... Ka7 {[%clk
0:00:23.5]} 32. Nc6+ {[%clk 0:00:13.9]} 32... Nxc6 {[%clk 0:00:22.4]} 33. dxc6
{[%clk 0:00:14.1]} 33... Qd4 {[%clk 0:00:20.4]} 34. Nd7 {[%clk 0:00:13]} 34...
Nf2+ {[%clk 0:00:19]} 35. Rxf2 {[%clk 0:00:12.5]} 35... Qxf2 {[%clk 0:00:18.9]}
36. Nxf8 {[%clk 0:00:11.6]} 36... Rxf8 {[%clk 0:00:18.7]} 37. Qf3 {[%clk
0:00:09.8]} 37... Qxf3 {[%clk 0:00:17.9]} 38. gxf3 {[%clk 0:00:09.7]} 38... Rg8
{[%clk 0:00:17.6]} 39. f4 {[%clk 0:00:05.9]} 39... Kb6 {[%clk 0:00:16.9]} 40. e5
{[%clk 0:00:06.1]} 40... fxe5 {[%clk 0:00:16.4]} 41. fxe5 {[%clk 0:00:07]} 41...
Re8 {[%clk 0:00:16.1]} 42. Re1 {[%clk 0:00:06.3]} 42... Re6 {[%clk 0:00:15.5]}
43. Kg2 {[%clk 0:00:07.2]} 43... Kxc6 {[%clk 0:00:15.9]} 44. Kf3 {[%clk
0:00:07.1]} 44... Kd5 {[%clk 0:00:16.2]} 45. Kf4 {[%clk 0:00:07.3]} 45... h4
{[%clk 0:00:15.9]} 46. Rd1+ {[%clk 0:00:07.6]} 46... Kc5 {[%clk 0:00:15.5]} 47.
Kf5 {[%clk 0:00:07.9]} 47... Re8 {[%clk 0:00:13.4]} 48. e6 {[%clk 0:00:08.1]}
48... a5 {[%clk 0:00:10.4]} 49. Kf6 {[%clk 0:00:08.2]} 49... Rf8+ {[%clk
0:00:08.7]} 50. Kg7 {[%clk 0:00:07.7]} 50... Rf2 {[%clk 0:00:07.6]} 51. Re1
{[%clk 0:00:07.4]} 51... Rg2+ {[%clk 0:00:07.7]} 52. Kh6 {[%clk 0:00:06.6]}
52... Rg8 {[%clk 0:00:07.1]} 53. e7 {[%clk 0:00:06.6]} 53... Re8 {[%clk
0:00:07]} 54. Kg7 {[%clk 0:00:06.8]} 54... Kd6 {[%clk 0:00:07]} 55. Kf7 {[%clk
0:00:07]} 55... Rxe7+ {[%clk 0:00:03.9]} 56. Rxe7 {[%clk 0:00:05.8]} 56... c5
{[%clk 0:00:04]} 57. Re4 {[%clk 0:00:05.2]} 57... Kd5 {[%clk 0:00:04.1]} 58.
Rxh4 {[%clk 0:00:05.1]} 58... Kc6 {[%clk 0:00:04.5]} 59. Rc4 {[%clk 0:00:04.8]}
59... Kb5 {[%clk 0:00:04.4]} 60. a4+ {[%clk 0:00:05.7]} 60... Kc6 {[%clk
0:00:04.2]} 61. Ke6 {[%clk 0:00:06.6]} 61... Kb6 {[%clk 0:00:03.8]} 62. Kd5
{[%clk 0:00:06.8]} 62... Kc7 {[%clk 0:00:03.9]} 63. Kxc5 {[%clk 0:00:07]} 63...
Kb7 {[%clk 0:00:04]} 64. Kb5 {[%clk 0:00:07.9]} 64... Ka7 {[%clk 0:00:03.2]} 65.
Kxa5 {[%clk 0:00:08.8]} 65... Kb7 {[%clk 0:00:03.6]} 66. Kb5 {[%clk 0:00:09.2]}
66... Ka7 {[%clk 0:00:04]} 67. Rc7+ {[%clk 0:00:09.2]} 67... Kb8 {[%clk
0:00:04]} 68. Kb6 {[%clk 0:00:09.4]} 68... Ka8 {[%clk 0:00:04.1]} 69. Rf7 {[%clk
0:00:09.7]} 69... Kb8 {[%clk 0:00:03.1]} 70. Rf8# {[%clk 0:00:10.6]} 1-0

[Event "Betsys MČR v online bleskovém šachu 2021"]
[Site "Chess.com"]
[Date "2021.04.17"]
[Round "7"]
[White "Svandik49"]
[Black "Evca64"]
[Result "1-0"]
[WhiteElo "2266"]
[BlackElo "2068"]
[TimeControl "180+1"]
[EndTime "10:13:30 PDT"]
[Termination "Uživatel Svandik49 zvítězil na čas"]

1. e4 {[%clk 0:02:41.7]} 1... c6 {[%clk 0:02:59.4]} 2. d4 {[%clk 0:02:38.7]}
2... d5 {[%clk 0:02:59.5]} 3. exd5 {[%clk 0:02:33.7]} 3... cxd5 {[%clk
0:02:59.2]} 4. Bd3 {[%clk 0:02:33]} 4... Nc6 {[%clk 0:02:58.4]} 5. c3 {[%clk
0:02:33]} 5... Qc7 {[%clk 0:02:58.2]} 6. Ne2 {[%clk 0:02:25.3]} 6... Bg4 {[%clk
0:02:56.9]} 7. O-O {[%clk 0:02:24.8]} 7... e6 {[%clk 0:02:56.4]} 8. Qe1 {[%clk
0:02:24.6]} 8... Be7 {[%clk 0:02:55.4]} 9. Bf4 {[%clk 0:02:18.2]} 9... Qb6
{[%clk 0:02:54]} 10. Qc1 {[%clk 0:02:00.8]} 10... Bh5 {[%clk 0:02:42.2]} 11. Nd2
{[%clk 0:01:55.4]} 11... Nf6 {[%clk 0:02:39.9]} 12. a4 {[%clk 0:01:46.8]} 12...
Bg6 {[%clk 0:02:33.5]} 13. Bxg6 {[%clk 0:01:42]} 13... hxg6 {[%clk 0:02:32.8]}
14. Nf3 {[%clk 0:01:42.1]} 14... Nh5 {[%clk 0:02:15]} 15. Be3 {[%clk 0:01:39.3]}
15... Qc7 {[%clk 0:02:13.1]} 16. Nf4 {[%clk 0:01:33.9]} 16... Bd6 {[%clk
0:02:10.1]} 17. Nxh5 {[%clk 0:01:30.6]} 17... Rxh5 {[%clk 0:02:06.1]} 18. h3
{[%clk 0:01:28.8]} 18... Ne7 {[%clk 0:01:58.3]} 19. Re1 {[%clk 0:01:18.2]} 19...
Kf8 {[%clk 0:01:57.1]} 20. Qd2 {[%clk 0:01:07.9]} 20... Rc8 {[%clk 0:01:55.9]}
21. a5 {[%clk 0:01:06.2]} 21... a6 {[%clk 0:01:54.9]} 22. Re2 {[%clk 0:00:58.8]}
22... Rh8 {[%clk 0:01:44.3]} 23. Qd3 {[%clk 0:00:53.5]} 23... Nf5 {[%clk
0:01:42.3]} 24. Nd2 {[%clk 0:00:47.1]} 24... Bf4 {[%clk 0:01:27.7]} 25. Nf1
{[%clk 0:00:45.3]} 25... Bxe3 {[%clk 0:01:26.1]} 26. Nxe3 {[%clk 0:00:41.6]}
26... Nxe3 {[%clk 0:01:18.8]} 27. Rxe3 {[%clk 0:00:41.7]} 27... g5 {[%clk
0:01:15.4]} 28. Rg3 {[%clk 0:00:38.5]} 28... Qf4 {[%clk 0:01:06.6]} 29. Rg4
{[%clk 0:00:28.2]} 29... Qf6 {[%clk 0:01:02.5]} 30. Re1 {[%clk 0:00:28]} 30...
Qd8 {[%clk 0:00:35.7]} 31. Qd2 {[%clk 0:00:25.7]} 31... Qxa5 {[%clk 0:00:28.9]}
32. Qxg5 {[%clk 0:00:25.5]} 32... Rh7 {[%clk 0:00:28.7]} 33. Rf4 {[%clk
0:00:21.4]} 33... Kg8 {[%clk 0:00:26.9]} 34. Qe7 {[%clk 0:00:18]} 34... Rf8
{[%clk 0:00:21.1]} 35. Rxe6 {[%clk 0:00:16.6]} 35... Qa1+ {[%clk 0:00:18.5]} 36.
Re1 {[%clk 0:00:16.5]} 36... Qxb2 {[%clk 0:00:18]} 37. Qe3 {[%clk 0:00:11.9]}
37... a5 {[%clk 0:00:16.8]} 38. Rf5 {[%clk 0:00:11.5]} 38... Qb3 {[%clk
0:00:15.2]} 39. Qf3 {[%clk 0:00:10.7]} 39... a4 {[%clk 0:00:13.4]} 40. Qxd5
{[%clk 0:00:10.1]} 40... Qxd5 {[%clk 0:00:13]} 41. Rxd5 {[%clk 0:00:09.8]} 41...
Ra8 {[%clk 0:00:12.7]} 42. Ra1 {[%clk 0:00:08.6]} 42... Rh6 {[%clk 0:00:11.8]}
43. Rb5 {[%clk 0:00:07.1]} 43... b6 {[%clk 0:00:10.6]} 44. Rb4 {[%clk
0:00:05.5]} 44... b5 {[%clk 0:00:10.8]} 45. Rxb5 {[%clk 0:00:05.7]} 45... a3
{[%clk 0:00:10.7]} 46. Ra2 {[%clk 0:00:04.5]} 46... Rha6 {[%clk 0:00:09.7]} 47.
Rb3 {[%clk 0:00:04.6]} 47... Kf8 {[%clk 0:00:08.9]} 48. c4 {[%clk 0:00:04.9]}
48... Ke7 {[%clk 0:00:09.1]} 49. c5 {[%clk 0:00:05.5]} 49... Ke6 {[%clk
0:00:09.1]} 50. Rb6+ {[%clk 0:00:05]} 50... Kd5 {[%clk 0:00:07.2]} 51. Rd6+
{[%clk 0:00:02.6]} 51... Rxd6 {[%clk 0:00:06.2]} 52. cxd6 {[%clk 0:00:03.5]}
52... Kxd6 {[%clk 0:00:06.1]} 53. Kf1 {[%clk 0:00:01.9]} 53... Kd5 {[%clk
0:00:06.5]} 54. Ke2 {[%clk 0:00:02.6]} 54... Kxd4 {[%clk 0:00:06.9]} 55. Kd2
{[%clk 0:00:03.5]} 55... Kc4 {[%clk 0:00:07]} 56. Kc2 {[%clk 0:00:03.8]} 56...
Kb4 {[%clk 0:00:07.3]} 57. Kb1 {[%clk 0:00:04.2]} 57... Re8 {[%clk 0:00:06.6]}
58. Rd2 {[%clk 0:00:04.3]} 58... Re1+ {[%clk 0:00:05.4]} 59. Ka2 {[%clk
0:00:04.5]} 59... Rf1 {[%clk 0:00:05.4]} 60. Rd4+ {[%clk 0:00:04.5]} 60... Kc3
{[%clk 0:00:05.4]} 61. Rf4 {[%clk 0:00:04.9]} 61... f6 {[%clk 0:00:04.7]} 62.
Rf3+ {[%clk 0:00:05.3]} 62... Kd2 {[%clk 0:00:03.9]} 63. Kxa3 {[%clk 0:00:05]}
63... Ke2 {[%clk 0:00:03.7]} 64. Rg3 {[%clk 0:00:04.5]} 64... g5 {[%clk
0:00:03.3]} 65. h4 {[%clk 0:00:04.2]} 65... gxh4 {[%clk 0:00:02.4]} 66. Rh3
{[%clk 0:00:04.2]} 66... Rxf2 {[%clk 0:00:01.9]} 67. Rxh4 {[%clk 0:00:04.6]}
67... Rxg2 {[%clk 0:00:01.5]} 68. Kb3 {[%clk 0:00:04.4]} 1-0